bitfinex/quotes_BTCUSD_20240828
["timestamp","ask_amount","ask_price","bid_price","bid_amount"]
[1724849941243,0.39474727,60107.0,60106.0,0.00981317]
[1724849941457,0.34484928,60107.0,60106.0,0.00981317]
[1724849941653,0.54875868,60107.0,60106.0,0.00981317]
[1724849942274,0.34484928,60107.0,60106.0,0.00981317]
[1724849942673,0.39474727,60107.0,60106.0,0.00981317]
[1724849942870,0.72748627,60107.0,60106.0,0.00981317]
[1724849943074,0.72748627,60107.0,60106.0,0.0009009]
[1724849943631,0.72748627,60107.0,60106.0,0.00983296]
[1724849944058,0.39474727,60107.0,60106.0,0.00983296]
[1724849944480,0.34484928,60107.0,60106.0,0.00983296]
[1724849944712,0.22838078,60107.0,60106.0,0.00983296]
[1724849944937,0.67758828,60107.0,60106.0,0.00983296]
[1724849945156,0.67758828,60107.0,60106.0,0.0009009]
[1724849945822,0.82355066,60107.0,60106.0,0.0009009]
[1724849946054,1.30506013,60107.0,60106.0,0.0009009]
[1724849946273,1.23020938,60107.0,60106.0,0.0009009]
[1724849946947,1.084247,60107.0,60106.0,0.0009009]
[1724849947425,1.1590734,60107.0,60106.0,0.0009009]
[1724849948114,0.8263344,60107.0,60106.0,0.0009009]
[1724849948329,0.30228743,60107.0,60106.0,0.1672729]
[1724849948564,0.006,60107.0,60106.0,0.84173259]
[1724849948801,0.006,60107.0,60106.0,0.50898759]
[1724849949027,0.006,60107.0,60106.0,0.84173259]
[1724849949473,0.03107985,60107.0,60106.0,0.84173259]
[1724849949683,0.02707985,60107.0,60106.0,0.84173259]
[1724849949880,0.02907985,60107.0,60106.0,0.84173259]
[1724849950293,0.003,60107.0,60106.0,0.84173259]
[1724849950908,0.309969,60107.0,60106.0,0.00987059]
[1724849951535,0.644708,60107.0,60106.0,0.00987059]
[1724849952737,0.642708,60107.0,60106.0,0.00987059]
[1724849952963,0.314969,60107.0,60106.0,0.00987059]
[1724849953605,0.34104977,60107.0,60106.0,0.00987059]
[1724849954292,1.1521014,60107.0,60106.0,0.00987059]
[1724849954518,1.6896214,60107.0,60106.0,0.00987059]
[1724849954801,1.20630877,60107.0,60106.0,0.0009009]
[1724849955024,1.21130877,60107.0,60106.0,0.0009009]
[1724849955489,1.20630877,60107.0,60106.0,0.0009009]
[1724849955704,0.49089057,60107.0,60106.0,0.0009009]
[1724849956020,0.82362957,60107.0,60106.0,0.0009009]
[1724849956265,0.82362957,60107.0,60106.0,0.00987137]
[1724849956484,0.82362957,60107.0,60106.0,0.0009009]
[1724849956677,1.15636857,60107.0,60106.0,0.0009009]
[1724849957589,1.16974605,60107.0,60106.0,0.0009009]
[1724849958052,1.33829769,60107.0,60106.0,0.0009009]
[1724849958267,1.36320759,60107.0,60106.0,0.0009009]
[1724849958495,1.11990525,60107.0,60106.0,0.0009009]
[1724849959679,1.19464529,60107.0,60106.0,0.0009009]
[1724849960383,1.55230449,60107.0,60106.0,0.0009009]
[1724849960601,1.42656348,60107.0,60106.0,0.0009009]
[1724849960809,1.33413203,60107.0,60106.0,0.0009009]
[1724849961639,1.16855213,60107.0,60106.0,0.0009009]
[1724849963942,1.1945906,60107.0,60106.0,0.0009009]
[1724849964374,1.5273296,60107.0,60106.0,0.0009009]
[1724849966094,1.52732496,60107.0,60106.0,0.0009009]
[1724849966707,1.50124192,60107.0,60106.0,0.0009009]
[1724849968793,1.50125011,60107.0,60106.0,0.0009009]
[1724849970119,1.52733307,60107.0,60106.0,0.0009009]
[1724849970334,1.50125011,60107.0,60106.0,0.0009009]
[1724849971007,1.66980175,60107.0,60106.0,0.0009009]
[1724849971218,1.50125011,60107.0,60106.0,0.0009009]
[1724849973852,1.50121561,60107.0,60106.0,0.0009009]
[1724849975867,1.5739837,60107.0,60106.0,0.0009009]
[1724849976075,1.44956348,60107.0,60106.0,0.0009009]
[1724849976497,1.61811512,60107.0,60106.0,0.0009009]
[1724849976737,1.64419867,60107.0,60106.0,0.0009009]
[1724849976953,1.47564703,60107.0,60106.0,0.0009009]
[1724849977615,1.9726903,60107.0,60106.0,0.0009009]
[1724849978526,1.9736903,60107.0,60106.0,0.0009009]
[1724849978732,1.97361949,60107.0,60106.0,0.0009009]
[1724849979375,1.98561949,60107.0,60106.0,0.0009009]
[1724849979575,2.15417113,60107.0,60106.0,0.0009009]
[1724849979781,2.13817113,60107.0,60106.0,0.0009009]
[1724849979984,1.96961949,60107.0,60106.0,0.0009009]
[1724849980186,1.83238603,60107.0,60106.0,0.0009009]
[1724849980397,1.47564703,60107.0,60106.0,0.0009009]
[1724849980600,1.47064703,60107.0,60106.0,0.0009009]
[1724849980818,1.48964703,60107.0,60106.0,0.0009009]
[1724849981250,1.67219867,60107.0,60106.0,0.0009009]
[1724849981674,1.50364703,60107.0,60106.0,0.0009009]
[1724849989668,1.62800841,60107.0,60106.0,0.0009009]
[1724849989880,1.50364703,60107.0,60106.0,0.0009009]
[1724849993006,1.83638603,60107.0,60106.0,0.0009009]
[1724849993448,1.50364703,60107.0,60106.0,0.0009009]
[1724849994324,1.67219867,60107.0,60106.0,0.0009009]
[1724849994557,2.00493767,60107.0,60106.0,0.0009009]
[1724849995003,1.67219867,60107.0,60106.0,0.0009009]
[1724849995913,2.17130867,60107.0,60106.0,0.0009009]
[1724849996591,2.6532672,60107.0,60106.0,0.0009009]
[1724849996820,2.6652672,60107.0,60106.0,0.0009009]
[1724849997327,2.51604767,60107.0,60106.0,0.0009009]
[1724849997544,2.50204767,60107.0,60106.0,0.0009009]
[1724849997781,2.48804767,60107.0,60106.0,0.0009009]
[1724849997969,2.51604767,60107.0,60106.0,0.0009009]
[1724849998461,2.50204767,60107.0,60106.0,0.0009009]
[1724849999816,2.48804767,60107.0,60106.0,0.0009009]
[1724850000046,2.83478667,60107.0,60106.0,0.0009009]
[1724850000266,2.50055146,60107.0,60106.0,5.09e-05]
[1724850000474,2.31949603,60107.0,60106.0,5.09e-05]
[1724850000686,2.33349603,60107.0,60106.0,5.09e-05]
[1724850001132,2.50136801,60107.0,60106.0,5.09e-05]
[1724850001352,2.46128446,60107.0,60106.0,5.09e-05]
[1724850001570,2.66264351,60107.0,60106.0,5.09e-05]
[1724850001828,2.50677153,60107.0,60106.0,5.09e-05]
[1724850002733,2.55447016,60107.0,60106.0,5.09e-05]
[1724850003872,2.50677153,60107.0,60106.0,5.09e-05]
[1724850004085,2.50877153,60107.0,60106.0,5.09e-05]
[1724850004958,2.50477153,60107.0,60106.0,5.09e-05]
[1724850005169,2.50877153,60107.0,60106.0,5.09e-05]
[1724850006910,2.67669221,60107.0,60106.0,5.09e-05]
[1724850007351,2.30541248,60107.0,60106.0,5.09e-05]
[1724850007613,2.29541248,60107.0,60106.0,5.09e-05]
[1724850007858,2.44468055,60107.0,60106.0,5.09e-05]
[1724850008481,2.47076632,60107.0,60106.0,5.09e-05]
[1724850008691,2.50884428,60107.0,60106.0,5.09e-05]
[1724850009938,2.35957621,60107.0,60106.0,5.09e-05]
[1724850010353,2.50885033,60107.0,60106.0,5.09e-05]
[1724850010558,2.36157621,60107.0,60106.0,5.09e-05]
[1724850010770,2.56293526,60107.0,60106.0,5.09e-05]
[1724850011406,2.57293526,60107.0,60106.0,5.09e-05]
[1724850012044,2.74085594,60107.0,60106.0,5.09e-05]
[1724850012459,2.74167594,60107.0,60106.0,5.09e-05]
[1724850016183,2.7416297,60107.0,60106.0,5.09e-05]
[1724850017505,2.57375526,60107.0,60106.0,5.09e-05]
[1724850017934,2.7416297,60107.0,60106.0,5.09e-05]
[1724850018356,2.57375526,60107.0,60106.0,5.09e-05]
[1724850020442,2.5336773,60107.0,60106.0,5.09e-05]
[1724850020860,2.68298411,60107.0,60106.0,5.09e-05]
[1724850021115,2.5336773,60107.0,60106.0,5.09e-05]
[1724850021785,2.70164146,60107.0,60106.0,5.09e-05]
[1724850022220,2.70364146,60107.0,60106.0,5.09e-05]
[1724850022419,2.70422894,60107.0,60106.0,5.09e-05]
[1724850022636,2.87220627,60107.0,60106.0,5.09e-05]
[1724850023370,2.70422894,60107.0,60106.0,5.09e-05]
[1724850023591,2.87220452,60107.0,60106.0,5.09e-05]
[1724850023764,2.87220286,60107.0,60106.0,5.09e-05]
[1724850024729,2.87219763,60107.0,60106.0,5.09e-05]
[1724850025286,2.70422894,60107.0,60106.0,5.09e-05]
[1724850029638,2.87219763,60107.0,60106.0,5.09e-05]
[1724850030855,2.8722335,60107.0,60106.0,5.09e-05]
[1724850032053,2.70422894,60107.0,60106.0,5.09e-05]
[1724850032278,2.5834611,60107.0,60106.0,5.09e-05]
[1724850032705,2.58337791,60107.0,60106.0,5.09e-05]
[1724850032979,2.41482627,60107.0,60106.0,5.09e-05]
[1724850033222,2.40082627,60107.0,60106.0,5.09e-05]
[1724850033447,2.41482627,60107.0,60106.0,5.09e-05]
[1724850033888,2.74756527,60107.0,60106.0,5.09e-05]
[1724850034160,2.70428982,60107.0,60106.0,5.09e-05]
[1724850035039,2.53573818,60107.0,60106.0,5.09e-05]
[1724850035505,3.03652791,60107.0,60106.0,5.09e-05]
[1724850035737,2.86847718,60107.0,60106.0,5.09e-05]
[1724850035988,1.65966881,60106.0,60105.0,8.5e-07]
[1724850036226,2.61452381,60106.0,60105.0,8.5e-07]
[1724850036430,2.78307545,60106.0,60105.0,8.5e-07]
[1724850037121,2.79557924,60106.0,60105.0,8.5e-07]
[1724850037605,1.85013481,60102.0,60101.0,0.009009]
[1724850037819,2.78219449,60102.0,60101.0,0.009009]
[1724850038066,2.93913875,60102.0,60101.0,0.009009]
[1724850038516,2.77118907,60102.0,60101.0,0.009009]
[1724850041135,2.78518907,60102.0,60101.0,0.009009]
[1724850045906,2.78518907,60102.0,60100.0,0.009009]
[1724850045907,2.19877093,60101.0,60100.0,0.009009]
[1724850046137,2.19877093,60101.0,60097.0,0.009009]
[1724850046138,1.18467781,60098.0,60097.0,0.009009]
[1724850046378,1.18467781,60098.0,60078.0,0.0723]
[1724850046379,1.05343493,60095.0,60078.0,0.0723]
[1724850046608,0.83523681,60073.0,60072.0,0.00013]
[1724850046823,1.16816481,60073.0,60072.0,0.00013]
[1724850047041,1.79027481,60073.0,60072.0,0.00957677]
[1724850047257,1.79027481,60073.0,60072.0,0.00013]
[1724850047913,1.8182336,60073.0,60072.0,0.00013]
[1724850048142,1.79027481,60073.0,60072.0,0.00013]
[1724850048396,2.24159646,60073.0,60072.0,0.00013]
[1724850048634,2.24146594,60073.0,60072.0,0.00013]
[1724850048887,1.85391314,60073.0,60072.0,0.07243]
[1724850049138,1.80427481,60073.0,60072.0,0.08563]
[1724850049397,1.47079749,60073.0,60072.0,0.08563]
[1724850049641,1.15186949,60073.0,60072.0,0.08563]
[1724850050101,1.48479749,60073.0,60072.0,0.08563]
[1724850050369,1.15186949,60073.0,60072.0,0.08563]
[1724850051348,1.13786949,60073.0,60072.0,0.08563]
[1724850051609,0.60202681,60073.0,60072.0,0.08563]
[1724850051865,0.51402681,60073.0,60072.0,0.917962]
[1724850052125,0.50002681,60073.0,60072.0,0.927901]
[1724850052375,0.51402681,60073.0,60072.0,0.927901]
[1724850052598,0.50002681,60073.0,60072.0,0.927901]
[1724850052828,0.49911,60073.0,60072.0,1.260834]
[1724850053509,0.50002681,60073.0,60072.0,1.260834]
[1724850054206,0.51302681,60073.0,60072.0,1.260834]
[1724850054463,0.50002681,60073.0,60072.0,1.260834]
[1724850055829,0.52612115,60073.0,60072.0,1.260834]
[1724850057136,0.52612115,60073.0,60072.0,1.26118068]
[1724850060580,0.50002681,60073.0,60072.0,1.26118068]
[1724850061598,0.50002681,60073.0,60072.0,0.92824768]
[1724850061801,0.50202681,60073.0,60072.0,0.92914858]
[1724850063938,0.52812174,60073.0,60072.0,0.92914858]
[1724850064148,0.52612174,60073.0,60072.0,0.92914858]
[1724850064351,0.52912174,60073.0,60072.0,0.92914858]
[1724850064771,0.52612174,60073.0,60072.0,0.92914858]
[1724850064916,0.52912174,60073.0,60072.0,0.92914858]
[1724850065702,0.52612174,60073.0,60072.0,0.92914858]
[1724850066111,0.53012174,60073.0,60072.0,0.59621558]
[1724850066313,0.53212174,60073.0,60072.0,0.58301558]
[1724850066523,1.43064174,60073.0,60072.0,0.01131658]
[1724850066737,1.88656974,60073.0,60072.0,0.00137758]
[1724850067612,1.88256974,60073.0,60072.0,0.00137758]
[1724850067818,1.89656974,60073.0,60072.0,0.00137758]
[1724850068223,1.88256974,60073.0,60072.0,0.00137758]
[1724850068427,1.89656974,60073.0,60072.0,0.00137758]
[1724850068836,1.54964174,60073.0,60072.0,0.00137758]
[1724850069045,1.56364174,60073.0,60072.0,0.00137758]
[1724850069460,1.14151374,60073.0,60072.0,0.00137758]
[1724850070094,0.80858574,60073.0,60072.0,0.00137758]
[1724850070297,0.80858574,60073.0,60072.0,0.01114726]
[1724850070658,1.14151374,60073.0,60072.0,0.01114726]
[1724850070865,1.12751374,60073.0,60072.0,0.01114726]
[1724850071078,0.79458574,60073.0,60072.0,0.01114726]
[1724850071294,0.80758574,60073.0,60072.0,0.01114726]
[1724850071545,0.79458574,60073.0,60072.0,0.01114726]
[1724850071759,0.79458574,60073.0,60072.0,0.00137758]
[1724850071977,1.13951374,60073.0,60072.0,0.00137761]
[1724850073778,0.80658574,60073.0,60072.0,0.00137761]
[1724850074001,0.80658574,60073.0,60072.0,0.50077661]
[1724850074002,0.64012174,60073.0,60072.0,0.50077661]
[1724850074206,0.53812174,60073.0,60072.0,0.59604629]
[1724850074421,0.53720493,60073.0,60072.0,1.13048242]
[1724850074624,0.53720493,60073.0,60072.0,1.46341542]
[1724850074625,0.52520493,60073.0,60072.0,1.46341542]
[1724850075088,0.52520493,60073.0,60072.0,1.79634842]
[1724850075089,0.03709493,60073.0,60072.0,1.79634842]
[1724850075296,0.02609493,60073.0,60072.0,2.13336461]
[1724850075504,0.01833674,60091.0,60090.0,1.237219]
[1724850075505,0.52282779,60091.0,60090.0,1.237219]
[1724850075713,0.50540786,60091.0,60090.0,1.23756572]
[1724850075918,0.000819,60094.0,60093.0,0.904342]
[1724850076121,0.000819,60094.0,60093.0,0.90468872]
[1724850076327,0.000819,60094.0,60093.0,0.91403114]
[1724850076528,0.000819,60094.0,60093.0,0.91403113]
[1724850077694,0.02690451,60094.0,60093.0,0.91403113]
[1724850078738,0.02690451,60094.0,60093.0,1.24684813]
[1724850078946,0.02690451,60094.0,60093.0,1.24684812]
[1724850079148,0.02990451,60094.0,60093.0,1.24684812]
[1724850079899,0.02990451,60094.0,60093.0,0.91403111]
[1724850080123,0.03190451,60094.0,60093.0,0.91403111]
[1724850080571,0.03282132,60094.0,60093.0,0.50891411]
[1724850080783,0.00673581,60094.0,60093.0,0.50891411]
[1724850081223,0.003819,60094.0,60093.0,1.24684811]
[1724850081444,0.000819,60094.0,60093.0,1.24684811]
[1724850081667,0.007819,60094.0,60093.0,1.2468481]
[1724850082106,0.000819,60094.0,60093.0,1.2468481]
[1724850082322,0.008819,60094.0,60093.0,1.2468481]
[1724850083031,0.008819,60094.0,60093.0,0.9140311]
[1724850083256,0.000819,60094.0,60093.0,0.9140311]
[1724850083911,0.000819,60094.0,60093.0,0.91403109]
[1724850084344,0.000819,60094.0,60093.0,1.24684809]
[1724850086014,0.001819,60094.0,60093.0,1.24684809]
[1724850086463,0.000819,60094.0,60093.0,1.24684809]
[1724850087476,0.000819,60094.0,60093.0,1.24684808]
[1724850087757,0.001819,60094.0,60093.0,1.24684808]
[1724850087966,0.000819,60094.0,60093.0,1.24684808]
[1724850088335,0.02790247,60094.0,60093.0,1.24684808]
[1724850088754,0.02690247,60094.0,60093.0,1.24684808]
[1724850089094,0.02790247,60094.0,60093.0,1.24684808]
[1724850089711,0.02890247,60094.0,60093.0,1.24684808]
[1724850090769,0.02790247,60094.0,60093.0,1.24684808]
[1724850090974,0.02690247,60094.0,60093.0,1.24702374]
[1724850091180,0.02790247,60094.0,60093.0,1.24702374]
[1724850092016,0.02690247,60094.0,60093.0,1.24702374]
[1724850092255,0.02790247,60094.0,60093.0,1.24702374]
[1724850092687,0.02690247,60094.0,60093.0,1.24702374]
[1724850092889,0.02790247,60094.0,60093.0,1.24702374]
[1724850094525,0.02790247,60094.0,60093.0,1.57984074]
[1724850095282,0.02790247,60094.0,60093.0,1.57984073]
[1724850095934,0.02690247,60094.0,60093.0,1.57984073]
[1724850096782,0.02690247,60094.0,60093.0,1.58392392]
[1724850098481,0.02790247,60094.0,60093.0,1.58392392]
[1724850098702,0.02790247,60094.0,60093.0,1.91674092]
[1724850098954,0.001819,60094.0,60093.0,3.19774092]
[1724850099198,0.001819,60094.0,60093.0,2.86492392]
[1724850099447,0.001819,60094.0,60093.0,3.19774091]
[1724850099689,0.000819,60094.0,60093.0,3.19774091]
[1724850099908,0.000819,60094.0,60093.0,3.36620168]
[1724850100156,0.000819,60094.0,60093.0,3.46620168]
[1724850100157,0.00100001,60094.0,60093.0,3.46620168]
[1724850101418,1e-08,60094.0,60093.0,3.46620168]
[1724850101768,0.00100001,60094.0,60093.0,3.46620168]
[1724850102408,0.00100001,60094.0,60093.0,3.46620167]
[1724850104381,0.00100001,60094.0,60093.0,3.47870365]
[1724850104583,1e-08,60094.0,60093.0,3.47870365]
[1724850104959,0.00100001,60094.0,60093.0,3.49070365]
[1724850105117,0.02608011,60100.0,60099.0,0.00408319]
[1724850105385,0.00082,60107.0,60106.0,0.50320019]
[1724850105587,0.00082,60107.0,60106.0,1.7757606]
[1724850105769,0.00082,60107.0,60106.0,1.43893241]
[1724850105976,0.00082,60107.0,60106.0,1.17392557]
[1724850105977,0.06332,60107.0,60106.0,1.17392557]
[1724850106180,0.06332,60107.0,60106.0,1.17392556]
[1724850107665,0.06432,60107.0,60106.0,1.18292556]
[1724850107871,0.06432,60107.0,60106.0,0.85018056]
[1724850108076,0.14242,60107.0,60106.0,0.84118056]
[1724850108637,0.14342,60107.0,60106.0,0.84718056]
[1724850109024,0.14242,60107.0,60106.0,0.84118056]
[1724850109254,0.14342,60107.0,60106.0,0.84718056]
[1724850109460,0.14533681,60107.0,60106.0,0.00931856]
[1724850109668,0.14333681,60107.0,60106.0,0.00931855]
[1724850109862,0.14333681,60107.0,60106.0,0.17569055]
[1724850110091,0.14333681,60107.0,60106.0,0.49963927]
[1724850110376,0.14333681,60107.0,60106.0,0.50843555]
[1724850110947,0.14333681,60107.0,60106.0,0.84118055]
[1724850111145,0.14433681,60107.0,60106.0,0.84718055]
[1724850111290,0.14333681,60107.0,60106.0,0.84118055]
[1724850111491,0.14333681,60107.0,60106.0,0.00931855]
[1724850111817,0.14533681,60107.0,60106.0,0.17669055]
[1724850114182,0.14533681,60107.0,60106.0,0.50943555]
[1724850114318,0.14333681,60107.0,60106.0,0.50943555]
[1724850114728,0.14242,60107.0,60106.0,0.84218055]
[1724850115058,0.14333681,60107.0,60106.0,0.84218055]
[1724850115404,0.14333681,60107.0,60106.0,0.50943555]
[1724850115604,0.16941837,60107.0,60106.0,0.50943555]
[1724850116460,0.16941837,60107.0,60106.0,0.84218055]
[1724850116631,0.16941837,60107.0,60106.0,0.17669055]
[1724850116632,0.17141837,60107.0,60106.0,0.17669055]
[1724850116856,0.17141837,60107.0,60106.0,0.50943555]
[1724850118268,0.16941837,60107.0,60106.0,0.50943555]
[1724850118439,0.16941837,60107.0,60106.0,0.50943554]
[1724850120558,0.16941837,60107.0,60106.0,0.84218054]
[1724850120913,0.14333681,60107.0,60106.0,0.84218054]
[1724850121113,0.14333681,60107.0,60106.0,0.50943554]
[1724850122436,0.14533681,60107.0,60106.0,0.50943554]
[1724850122926,0.14533681,60107.0,60106.0,0.01031854]
[1724850123641,0.14533681,60107.0,60106.0,0.17669054]
[1724850124339,0.17141884,60107.0,60106.0,0.17669054]
[1724850124793,0.16850203,60107.0,60106.0,1.17492554]
[1724850124932,0.16850203,60107.0,60106.0,0.84218054]
[1724850125136,0.17050203,60107.0,60106.0,0.84218054]
[1724850125973,0.17050203,60107.0,60106.0,0.50943554]
[1724850126717,0.43778784,60107.0,60106.0,0.01031854]
[1724850126907,0.77052684,60107.0,60106.0,0.01031853]
[1724850127147,0.41170581,60107.0,60106.0,0.01031853]
[1724850127353,1.07718381,60107.0,60106.0,0.00152225]
[1724850127554,1.14999613,60107.0,60106.0,0.00152225]
[1724850127841,0.166403,60095.0,60094.0,0.0009009]
[1724850128032,0.64142581,60095.0,60094.0,0.0009009]
[1724850128301,0.64142581,60095.0,60094.0,0.01020107]
[1724850128508,0.64142581,60095.0,60094.0,0.00142315]
[1724850128691,0.64142581,60095.0,60094.0,0.01020107]
[1724850128926,0.64142581,60095.0,60094.0,0.00142315]
[1724850129088,0.64142581,60095.0,60094.0,0.01020107]
[1724850129296,0.64142581,60095.0,60094.0,0.00142315]
[1724850129493,0.64142581,60095.0,60094.0,0.01020107]
[1724850129703,0.64142581,60095.0,60094.0,0.00142315]
[1724850130078,0.64142581,60095.0,60094.0,0.01020107]
[1724850130079,0.33470617,60095.0,60094.0,0.01020107]
[1724850130264,0.30861981,60095.0,60094.0,0.00142315]
[1724850130464,0.30861981,60095.0,60094.0,0.01020107]
[1724850130465,0.14221681,60095.0,60094.0,0.01020107]
[1724850130703,0.14221681,60095.0,60094.0,0.00142315]
[1724850130911,0.31161981,60095.0,60094.0,0.01020107]
[1724850132936,0.64442581,60095.0,60094.0,0.01020107]
[1724850133141,0.31161981,60095.0,60094.0,0.01020107]
[1724850133571,0.33770657,60095.0,60094.0,0.01020107]
[1724850134148,0.67051257,60095.0,60094.0,0.01020107]
[1724850134528,0.67051257,60095.0,60094.0,0.00142315]
[1724850135762,1.76893057,60095.0,60094.0,0.00142315]
[1724850135943,1.8417634,60095.0,60094.0,0.00142315]
[1724850136071,1.86667981,60095.0,60094.0,0.00142315]
[1724850136275,1.84163176,60095.0,60094.0,0.00142315]
[1724850136479,1.84163176,60095.0,60081.0,0.4705]
[1724850136480,0.64883381,60082.0,60081.0,0.4705]
[1724850136681,0.14951681,60073.0,60072.0,0.0010309]
[1724850136886,0.14751681,60073.0,60072.0,0.1674969]
[1724850137121,0.14951681,60073.0,60072.0,0.1674969]
[1724850137744,0.14751681,60073.0,60072.0,0.1674969]
[1724850137945,0.14751681,60073.0,60072.0,0.5004299]
[1724850138977,0.15351681,60073.0,60072.0,0.5004299]
[1724850139194,0.17961125,60073.0,60072.0,0.5004299]
[1724850139588,0.17961125,60073.0,60072.0,0.8333629]
[1724850139589,0.09709444,60073.0,60072.0,0.8333629]
[1724850139790,0.03209444,60073.0,60072.0,0.8333629]
[1724850140437,0.006,60073.0,60072.0,0.8333629]
[1724850141023,0.14331681,60076.0,60075.0,0.499375]
[1724850141467,0.14331681,60076.0,60075.0,0.498375]
[1724850141686,0.14331681,60076.0,60075.0,0.50752409]
[1724850142706,0.14731681,60076.0,60075.0,0.50752409]
[1724850142912,0.14931681,60076.0,60075.0,0.50752409]
[1724850145491,0.14731681,60076.0,60075.0,0.50752409]
[1724850145695,0.14731681,60076.0,60075.0,0.84134199]
[1724850145902,0.14731681,60076.0,60075.0,0.50842499]
[1724850146325,0.17341033,60076.0,60075.0,0.50842499]
[1724850146708,0.17249352,60076.0,60075.0,0.50842499]
[1724850146860,0.17341033,60076.0,60075.0,0.50842499]
[1724850148759,0.17541033,60076.0,60075.0,0.50842499]
[1724850150372,0.17541033,60076.0,60075.0,0.01004999]
[1724850150744,0.17541033,60076.0,60075.0,0.17650799]
[1724850150955,0.17341033,60076.0,60075.0,0.17650799]
[1724850151158,0.09251033,60076.0,60075.0,0.50942499]
[1724850151364,0.02609352,60076.0,60075.0,0.84234199]
[1724850151737,0.03109352,60076.0,60075.0,0.84234199]
[1724850152468,0.02609352,60076.0,60075.0,0.84234199]
[1724850152681,0.02609352,60076.0,60075.0,1.24755899]
[1724850152854,0.004,60076.0,60075.0,1.58745918]
[1724850153294,0.004,60076.0,60075.0,1.92037618]
[1724850153493,0.504,60076.0,60075.0,1.92037618]
[1724850153880,0.504,60076.0,60075.0,2.09883695]
[1724850154098,0.504,60076.0,60075.0,2.19883695]
[1724850154509,0.5,60076.0,60075.0,2.19883695]
[1724850154935,0.504,60076.0,60075.0,2.19883695]
[1724850155065,0.5,60076.0,60075.0,2.19883695]
[1724850155474,0.501,60076.0,60075.0,2.19883695]
[1724850155677,0.5,60076.0,60075.0,2.19883695]
[1724850156179,0.501,60076.0,60075.0,2.19883695]
[1724850157955,0.5,60076.0,60075.0,2.19883695]
[1724850158255,0.501,60076.0,60075.0,2.19883695]
[1724850158441,0.5,60076.0,60075.0,2.19883695]
[1724850158853,0.501,60076.0,60075.0,2.19883695]
[1724850159106,0.501,60076.0,60075.0,1.69745918]
[1724850159280,0.50182,60076.0,60075.0,1.69745918]
[1724850159456,0.50182,60076.0,60075.0,1.68745918]
[1724850161293,0.50082,60076.0,60075.0,1.68745918]
[1724850161529,0.50182,60076.0,60075.0,1.68745918]
[1724850161880,0.50082,60076.0,60075.0,1.68745918]
[1724850162320,0.50182,60076.0,60075.0,1.68745918]
[1724850163161,0.50082,60076.0,60075.0,1.58745918]
[1724850163807,0.50082,60076.0,60075.0,1.58455918]
[1724850164425,0.50082,60076.0,60075.0,1.50817599]
[1724850164630,0.50182,60076.0,60075.0,1.50817599]
[1724850164830,0.58022,60076.0,60075.0,1.50817599]
[1724850165059,0.64602,60076.0,60075.0,1.50817599]
[1724850165260,0.64702,60076.0,60075.0,1.50817599]
[1724850165802,0.64602,60076.0,60075.0,1.50817599]
[1724850166230,0.64702,60076.0,60075.0,1.50817599]
[1724850167455,0.64702,60076.0,60075.0,1.17525899]
[1724850168079,0.67311179,60076.0,60075.0,1.17525899]
[1724850168909,0.64702,60076.0,60075.0,1.17525899]
[1724850169583,0.64686021,60076.0,60075.0,1.17525899]
[1724850170176,0.64686021,60076.0,60075.0,0.84234199]
[1724850171298,0.67295288,60076.0,60075.0,0.84234199]
[1724850173486,0.67295288,60076.0,60075.0,0.50942499]
[1724850173993,0.64686021,60076.0,60075.0,0.50942499]
[1724850174723,0.64586021,60076.0,60075.0,0.50942499]
[1724850177209,0.67287066,60076.0,60075.0,0.01004999]
[1724850177415,0.67287066,60076.0,60075.0,0.17650799]
[1724850177616,0.67287066,60076.0,60075.0,0.01004999]
[1724850177847,0.67287066,60076.0,60075.0,0.17650799]
[1724850178053,0.67287066,60076.0,60075.0,0.84234199]
[1724850178255,0.67195385,60076.0,60075.0,0.84234199]
[1724850178468,0.67287066,60076.0,60075.0,0.84234199]
[1724850178667,0.67195385,60076.0,60075.0,0.84234199]
[1724850179402,0.67695385,60076.0,60075.0,0.84234199]
[1724850179633,0.67195385,60076.0,60075.0,0.84234199]
[1724850179988,0.64886021,60076.0,60075.0,0.84234199]
[1724850180864,0.65086021,60076.0,60075.0,0.84234199]
[1724850181662,0.64886021,60076.0,60075.0,0.84234199]
[1724850183335,0.67495393,60076.0,60075.0,0.84234199]
[1724850183855,0.67695393,60076.0,60075.0,0.84234199]
[1724850184664,0.67495393,60076.0,60075.0,0.84234199]
[1724850184873,0.67195393,60076.0,60075.0,0.84234199]
[1724850185319,0.67395393,60076.0,60075.0,0.84234199]
[1724850185530,0.67487074,60076.0,60075.0,0.50942499]
[1724850186125,0.67487074,60076.0,60075.0,0.17650799]
[1724850186126,0.64877702,60076.0,60075.0,0.17650799]
[1724850186582,0.64877702,60076.0,60075.0,0.01004999]
[1724850187040,0.65377702,60076.0,60075.0,0.17650799]
[1724850188235,0.64877702,60076.0,60075.0,0.17650799]
[1724850188461,0.65377702,60076.0,60075.0,0.17650799]
[1724850189095,0.65377702,60076.0,60075.0,0.01004999]
[1724850189096,0.82023202,60076.0,60075.0,0.01004999]
[1724850189307,1.15314302,60076.0,60075.0,0.01004999]
[1724850189622,1.17923752,60076.0,60075.0,0.0009009]
[1724850189754,0.84632652,60076.0,60075.0,0.0009009]
[1724850192798,0.67987152,60076.0,60075.0,0.0009009]
[1724850193332,0.67987152,60076.0,60075.0,0.01047718]
[1724850194081,0.67987152,60076.0,60075.0,0.50985218]
[1724850194289,0.67987152,60076.0,60075.0,0.17693518]
[1724850196192,0.67987152,60076.0,60075.0,0.01047718]
[1724850197418,0.67987152,60076.0,60075.0,0.17693518]
[1724850197618,0.67987152,60076.0,60075.0,0.01047718]
[1724850198966,0.67987152,60076.0,60075.0,0.17693518]
[1724850200529,0.67987152,60076.0,60075.0,0.01047718]
[1724850201901,0.67987152,60076.0,60075.0,0.17693518]
[1724850202126,0.67987152,60076.0,60075.0,0.01047718]
[1724850204994,0.84632652,60076.0,60075.0,0.01047718]
[1724850205415,1.17923752,60076.0,60075.0,0.0009009]
[1724850205627,1.84505952,60076.0,60075.0,0.0009009]
[1724850206035,1.92569218,60076.0,60075.0,0.0009009]
[1724850206895,2.02569218,60076.0,60075.0,0.0009009]
[1724850207425,2.10035052,60076.0,60075.0,0.0009009]
[1724850207628,2.10035052,60076.0,60072.0,0.0010309]
[1724850207629,1.65469281,60073.0,60072.0,0.0010309]
[1724850207837,1.74532547,60073.0,60072.0,0.0010309]
[1724850208048,1.9894206,60073.0,60072.0,0.0010309]
[1724850208748,1.249286,60071.0,60070.0,0.009009]
[1724850208955,1.435886,60071.0,60070.0,0.009009]
[1724850209173,1.43376702,60071.0,60070.0,0.009009]
[1724850209852,1.43576702,60071.0,60070.0,0.009009]
[1724850210037,1.44976702,60071.0,60070.0,0.009009]
[1724850210635,1.45068383,60071.0,60070.0,0.009009]
[1724850211428,1.43668383,60071.0,60070.0,0.009009]
[1724850211809,1.46351465,60071.0,60070.0,0.009009]
[1724850212012,1.44951465,60071.0,60070.0,0.009009]
[1724850212376,1.46351465,60071.0,60070.0,0.009009]